bitfinex/quotes_BTCUSD_20251116
["timestamp","ask_amount","ask_price","bid_price","bid_amount"]
[1763260426789,0.01898,95861.0,95860.0,0.00999999]
[1763260426990,0.04857,95870.0,95860.0,0.00999999]
[1763260427226,0.04857,95870.0,95860.0,0.52814945]
[1763260427634,0.04857,95870.0,95860.0,0.53814944]
[1763260427808,0.01898,95861.0,95860.0,0.53814944]
[1763260428011,0.02004214,95861.0,95860.0,0.00999999]
[1763260428747,0.05221214,95861.0,95860.0,0.00999999]
[1763260429755,0.02004214,95861.0,95860.0,0.00999999]
[1763260430773,0.05221214,95861.0,95851.0,0.51814946]
[1763260430975,0.05507,95852.0,95851.0,0.25907473]
[1763260431178,0.07457306,95852.0,95840.0,0.53814944]
[1763260431387,0.01950306,95851.0,95841.0,0.07870536]
[1763260431588,0.01950306,95850.0,95842.0,0.02212213]
[1763260431923,0.01950306,95849.0,95843.0,0.02212213]
[1763260432144,0.01950306,95848.0,95841.0,0.05658323]
[1763260432376,0.01950306,95847.0,95842.0,0.02212115]
[1763260432618,0.0229,95852.0,95840.0,0.53814944]
[1763260432619,0.01950306,95846.0,95840.0,0.53814944]
[1763260432837,0.01950306,95845.0,95841.0,0.02212046]
[1763260433064,0.01950306,95844.0,95840.0,0.00999999]
[1763260433210,0.01950306,95843.0,95840.0,0.00999999]
[1763260433438,0.01950306,95842.0,95840.0,0.00999999]
[1763260433643,0.01950306,95841.0,95840.0,0.00999999]
[1763260434303,0.01950306,95841.0,95834.0,0.02086942]
[1763260434459,0.01950306,95840.0,95835.0,0.08532424]
[1763260434800,0.01950306,95839.0,95838.0,0.20868549]
[1763260434958,0.01950306,95839.0,95838.0,0.23080856]
[1763260435496,4.505e-05,95841.0,95840.0,0.20968113]
[1763260435699,4.505e-05,95841.0,95840.0,0.02212307]
[1763260435861,4.505e-05,95841.0,95840.0,0.04299118]
[1763260437103,4.505e-05,95841.0,95840.0,0.04399118]
[1763260437314,0.03221505,95841.0,95840.0,0.02312307]
[1763260437452,0.01954545,95841.0,95840.0,0.02312307]
[1763260438319,0.01954529,95841.0,95840.0,0.02312307]
[1763260438731,0.02006285,95841.0,95840.0,0.02312307]
[1763260439142,0.00056261,95841.0,95840.0,0.02312307]
[1763260439347,0.02006431,95841.0,95840.0,0.02312307]
[1763260441295,0.02006431,95841.0,95840.0,0.001]
[1763260441296,0.05223431,95841.0,95840.0,0.001]
[1763260441514,0.05745774,95841.0,95840.0,0.001]
[1763260441807,0.04341874,95840.0,95821.0,0.000271]
[1763260442028,0.03134,95822.0,95821.0,0.000271]
[1763260442239,0.0508417,95822.0,95821.0,0.000271]
[1763260442674,0.08221288,95822.0,95821.0,0.000271]
[1763260442877,0.0508417,95822.0,95821.0,0.000271]
[1763260443726,0.41726044,95822.0,95821.0,0.000271]
[1763260444908,0.41826044,95822.0,95821.0,0.000271]
[1763260445113,0.42271828,95822.0,95821.0,0.000271]
[1763260445314,0.42471828,95822.0,95821.0,0.000271]
[1763260445733,0.42371828,95822.0,95821.0,0.000271]
[1763260445938,0.52938766,95822.0,95821.0,0.000271]
[1763260446364,0.52838766,95822.0,95821.0,0.000271]
[1763260446685,0.53038766,95822.0,95821.0,0.000271]
[1763260447132,0.42671828,95822.0,95821.0,0.000271]
[1763260448142,0.44309907,95822.0,95821.0,0.000271]
[1763260449009,0.28540066,95822.0,95821.0,0.000271]
[1763260449230,0.27994282,95822.0,95821.0,0.000271]
[1763260449465,0.64236156,95822.0,95821.0,0.000271]
[1763260449669,0.43664123,95822.0,95821.0,0.000271]
[1763260450265,0.43564123,95822.0,95821.0,0.000271]
[1763260450418,0.43664123,95822.0,95821.0,0.000271]
[1763260450835,0.43464123,95822.0,95821.0,0.000271]
[1763260451264,0.64536156,95822.0,95821.0,0.000271]
[1763260451434,0.73370505,95822.0,95821.0,0.000271]
[1763260452202,0.43664123,95822.0,95821.0,0.000271]
[1763260452381,0.43364123,95822.0,95821.0,0.000271]
[1763260452786,0.43664123,95822.0,95821.0,0.000271]
[1763260453237,0.43564123,95822.0,95821.0,0.000271]
[1763260453675,0.43664123,95822.0,95821.0,0.000271]
[1763260454925,0.43464123,95822.0,95821.0,0.000271]
[1763260455325,0.43664123,95822.0,95821.0,0.000271]
[1763260455753,0.46801842,95822.0,95821.0,0.000271]
[1763260456557,0.67673875,95822.0,95821.0,0.000271]
[1763260457192,0.69311822,95822.0,95821.0,0.000271]
[1763260457594,0.71471987,95822.0,95821.0,0.000271]
[1763260457806,0.71471987,95822.0,95819.0,0.24199149]
[1763260457807,0.60505343,95820.0,95819.0,0.24199149]
[1763260458034,0.62455513,95820.0,95819.0,0.24199149]
[1763260458834,0.62655513,95820.0,95819.0,0.24199149]
[1763260459622,0.62855513,95820.0,95819.0,0.24199149]
[1763260460971,0.73222451,95820.0,95819.0,0.24199149]
[1763260461958,0.62855513,95820.0,95819.0,0.24199149]
[1763260464257,0.62455513,95820.0,95819.0,0.24199149]
[1763260464481,0.62655513,95820.0,95819.0,0.24199149]
[1763260464718,0.62755513,95820.0,95819.0,0.24199149]
[1763260466160,0.62655513,95820.0,95819.0,0.24199149]
[1763260467199,0.65593747,95820.0,95819.0,0.24199149]
[1763260467400,0.65793747,95820.0,95819.0,0.24199149]
[1763260467601,0.65893747,95820.0,95819.0,0.24199149]
[1763260468483,0.67691747,95820.0,95819.0,0.24199149]
[1763260469089,0.78058685,95820.0,95819.0,0.24199149]
[1763260471245,0.67691747,95820.0,95819.0,0.22943652]
[1763260473974,0.68237557,95820.0,95819.0,0.22943652]
[1763260474187,0.88119557,95820.0,95819.0,0.21688053]
[1763260474812,0.87819557,95820.0,95819.0,0.21688053]
[1763260475016,1.22976495,95820.0,95819.0,0.21688053]
[1763260475189,0.92397168,95813.0,95812.0,2.36930083]
[1763260475345,0.77887338,95813.0,95812.0,2.36930083]
[1763260476512,0.62349038,95813.0,95812.0,2.36930083]
[1763260476715,0.62749038,95813.0,95812.0,2.36930083]
[1763260477806,0.73690938,95813.0,95812.0,2.36930083]
[1763260478028,0.84057876,95813.0,95812.0,2.36930083]
[1763260479752,1.08647876,95813.0,95812.0,1.75988173]
[1763260480296,1.08247876,95813.0,95812.0,1.75988173]
[1763260480523,1.11387006,95813.0,95812.0,1.75988173]
[1763260480722,1.11887006,95813.0,95812.0,1.75988173]
[1763260480931,1.13225495,95813.0,95812.0,1.75988173]
[1763260481154,1.13025495,95813.0,95812.0,1.75988173]
[1763260481304,1.13325495,95813.0,95812.0,1.75988173]
[1763260481506,1.13525495,95813.0,95812.0,1.75988173]
[1763260485144,1.13525495,95813.0,95812.0,1.16059195]
[1763260485582,1.13525495,95813.0,95812.0,0.80302707]
[1763260488104,1.13525495,95813.0,95812.0,0.19088589]
[1763260488322,1.13525495,95813.0,95812.0,0.00396814]
[1763260488592,1.13528543,95813.0,95812.0,0.00396814]
[1763260489584,1.13228543,95813.0,95812.0,0.00396814]
[1763260489782,1.13028543,95813.0,95812.0,0.00396814]
[1763260489948,1.13628543,95813.0,95812.0,0.00396814]
[1763260493527,1.14773543,95813.0,95812.0,0.00396814]
[1763260494511,0.56822831,95813.0,95812.0,0.00396814]
[1763260494946,1.00965631,95813.0,95812.0,0.00396814]
[1763260495152,0.91826216,95813.0,95812.0,0.00396814]
[1763260495365,1.03800216,95813.0,95812.0,0.00396814]
[1763260495800,0.91526216,95813.0,95812.0,0.00396814]
[1763260496009,1.02193154,95813.0,95812.0,0.00396814]
[1763260496451,1.17190754,95813.0,95812.0,0.00396814]
[1763260496888,1.16089454,95813.0,95812.0,0.00396814]
[1763260497689,1.17727897,95813.0,95812.0,0.00396814]
[1763260500110,1.03019085,95813.0,95812.0,0.00396814]
[1763260500336,0.89122785,95813.0,95812.0,0.00396814]
[1763260500491,0.93464659,95813.0,95812.0,0.00396814]
[1763260500909,0.90281659,95813.0,95812.0,0.00396814]
[1763260501127,0.29049785,95813.0,95812.0,0.00396814]
[1763260501327,0.32415785,95813.0,95812.0,0.00396814]
[1763260501525,0.42320973,95813.0,95812.0,0.00396814]
[1763260501846,1.19619273,95813.0,95812.0,0.00396814]
[1763260502056,0.67219216,95813.0,95812.0,0.00396814]
[1763260502252,0.81263616,95813.0,95812.0,0.00396814]
[1763260502452,0.80963616,95813.0,95812.0,0.00396814]
[1763260502653,0.67319216,95813.0,95812.0,0.00396814]
[1763260502856,0.67219216,95813.0,95812.0,0.00396814]
[1763260503073,0.66919216,95813.0,95812.0,0.00396814]
[1763260503272,0.77486154,95813.0,95812.0,0.00396814]
[1763260503516,0.89536054,95813.0,95812.0,0.00396814]
[1763260504176,0.89736054,95813.0,95812.0,0.00396814]
[1763260504519,0.89536054,95813.0,95812.0,0.00396814]
[1763260504662,0.87488254,95813.0,95812.0,0.00396814]
[1763260504859,0.87888254,95813.0,95812.0,0.00396814]
[1763260505080,0.8952665,95813.0,95812.0,0.00396814]
[1763260506832,1.1411665,95813.0,95812.0,0.00396814]
[1763260508552,1.1391665,95813.0,95812.0,0.00396814]
[1763260508753,1.1371665,95813.0,95812.0,0.00396814]
[1763260508910,1.1401665,95813.0,95812.0,0.00396814]
[1763260509121,1.1421665,95813.0,95812.0,0.00396814]
[1763260521045,0.86139738,95813.0,95812.0,0.00396814]
[1763260521253,1.00230038,95813.0,95812.0,0.00396814]
[1763260521444,1.04571912,95813.0,95812.0,0.00396814]
[1763260521757,0.93423612,95813.0,95812.0,0.00396814]
[1763260521931,0.93123612,95813.0,95812.0,0.00396814]
[1763260522309,1.0329055,95813.0,95812.0,0.00396814]
[1763260522493,1.0349055,95813.0,95812.0,0.00396814]
[1763260522673,0.93323612,95813.0,95812.0,0.00396814]
[1763260523499,0.9332915,95813.0,95812.0,0.00396814]
[1763260524324,1.0847905,95813.0,95812.0,0.00396814]
[1763260529570,1.0563385,95813.0,95812.0,0.00396814]
[1763260530316,0.9332915,95813.0,95812.0,0.00396814]
[1763260530684,0.94456054,95813.0,95812.0,0.00396814]
[1763260533386,0.9332915,95813.0,95812.0,0.00396814]
[1763260537631,0.84900276,95813.0,95812.0,0.00396814]
[1763260537829,0.8326188,95813.0,95812.0,0.00396814]
[1763260538054,0.87603754,95813.0,95812.0,0.00396814]
[1763260538252,0.6672976,95813.0,95812.0,0.00396814]
[1763260538455,0.87403754,95813.0,95812.0,0.00396814]
[1763260538671,0.87603754,95813.0,95812.0,0.00396814]
[1763260538931,0.97970692,95813.0,95812.0,0.00396814]
[1763260539188,0.97770692,95813.0,95812.0,0.00396814]
[1763260539380,0.97570692,95813.0,95812.0,0.00396814]
[1763260539583,0.97770692,95813.0,95812.0,0.00396814]
[1763260539781,0.97970692,95813.0,95812.0,0.00396814]
[1763260540026,0.97770692,95813.0,95812.0,0.00396814]
[1763260540353,0.97970692,95813.0,95812.0,0.00396814]
[1763260544240,0.87603754,95813.0,95812.0,0.00396814]
[1763260546332,0.87602863,95813.0,95812.0,0.00396814]
[1763260548489,0.87602863,95813.0,95812.0,0.04749814]
[1763260551552,0.89241006,95813.0,95812.0,0.04749814]
[1763260551935,0.66728869,95813.0,95812.0,0.04749814]
[1763260552888,0.87602863,95813.0,95812.0,0.04749814]
[1763260559295,0.66728869,95813.0,95812.0,0.04749814]
[1763260559500,0.34428869,95813.0,95812.0,0.04749814]
[1763260559715,0.09838869,95813.0,95812.0,0.04749814]
[1763260560336,0.05496995,95813.0,95812.0,0.05600995]
[1763260560507,0.05496995,95813.0,95812.0,0.04749814]
[1763260560740,0.02357865,95813.0,95812.0,0.00396814]
[1763260561137,0.01957865,95813.0,95812.0,0.00396814]
[1763260561418,0.02157865,95813.0,95812.0,0.00396814]
[1763260561654,0.02057865,95813.0,95812.0,0.00396814]
[1763260562063,0.02157865,95813.0,95812.0,0.00396814]
[1763260562269,0.02057865,95813.0,95812.0,0.00396814]
[1763260563640,0.02157865,95813.0,95812.0,0.00396814]
[1763260564121,0.02057865,95813.0,95812.0,0.00396814]
[1763260564777,0.01957865,95813.0,95812.0,0.00396814]
[1763260565724,0.02057865,95813.0,95812.0,0.00396814]
[1763260566128,0.02057865,95813.0,95812.0,0.02484235]
[1763260566326,0.02057865,95813.0,95812.0,0.03108859]
[1763260566536,0.02057865,95813.0,95812.0,0.02484235]
[1763260567202,0.02057865,95813.0,95812.0,0.00396814]
[1763260567814,0.01957865,95813.0,95812.0,0.00396814]
[1763260579920,0.59473733,95813.0,95812.0,0.00396814]
[1763260580702,0.59573733,95813.0,95812.0,0.00396814]
[1763260581189,0.59673733,95813.0,95812.0,0.00396814]
[1763260581389,0.59573733,95813.0,95812.0,0.00396814]
[1763260581639,0.59673733,95813.0,95812.0,0.00396814]
[1763260582366,0.61914733,95813.0,95812.0,0.00396814]
[1763260582644,0.72281671,95813.0,95812.0,0.00396814]
[1763260583000,0.61914733,95813.0,95812.0,0.00396814]
[1763260583544,0.61814733,95813.0,95812.0,0.00396814]
[1763260583769,0.61714733,95813.0,95812.0,0.00396814]
[1763260583910,0.61814733,95813.0,95812.0,0.00396814]
[1763260584109,0.61914733,95813.0,95812.0,0.00396814]
[1763260584919,0.72281671,95813.0,95812.0,0.00396814]
[1763260585940,0.72281671,95813.0,95812.0,0.00396814]
[1763260586144,0.73919713,95813.0,95812.0,0.00396814]
[1763260586345,0.73819713,95813.0,95812.0,0.00396814]
[1763260586544,0.73719713,95813.0,95812.0,0.00396814]
[1763260586746,0.73919713,95813.0,95812.0,0.00396814]
[1763260587264,0.63552775,95813.0,95812.0,0.04333814]
[1763260588621,0.42678781,95813.0,95812.0,0.04333814]
[1763260588973,0.34678781,95813.0,95812.0,0.07004814]
[1763260589394,0.34678781,95813.0,95812.0,0.00396814]
[1763260589598,0.55552775,95813.0,95812.0,0.00396814]
[1763260590185,0.55452775,95813.0,95812.0,0.00396814]
[1763260590384,0.55352775,95813.0,95812.0,0.00396814]
[1763260590610,0.55452775,95813.0,95812.0,0.00396814]
[1763260590820,0.55552775,95813.0,95812.0,0.00396814]
[1763260591016,0.38820655,95813.0,95812.0,0.00396814]
[1763260591438,0.59994649,95813.0,95812.0,0.00396814]
[1763260595722,0.39120655,95813.0,95812.0,0.00396814]
[1763260596521,0.61632714,95813.0,95812.0,0.00396814]
[1763260596805,0.59994649,95813.0,95812.0,0.00396814]
[1763260600012,0.4075872,95813.0,95812.0,0.00396814]
[1763260600583,0.05817107,95813.0,95812.0,0.00396814]
[1763260600805,0.003,95813.0,95812.0,0.00396814]
[1763260601171,0.003,95813.0,95812.0,0.01064151]
[1763260601624,0.002,95813.0,95812.0,0.01064151]
[1763260601878,0.002,95813.0,95812.0,0.00396814]
[1763260602147,0.001,95813.0,95812.0,0.00396814]
[1763260602608,0.003,95813.0,95812.0,0.00396814]
[1763260602836,0.001,95813.0,95812.0,0.00396814]
[1763260603088,0.002,95813.0,95812.0,0.00396814]
[1763260604454,0.002,95813.0,95812.0,0.02484235]
[1763260604654,0.002,95813.0,95812.0,0.03151559]
[1763260605206,0.001,95813.0,95812.0,0.02484235]
[1763260605687,0.02241,95819.0,95813.0,0.03828]
[1763260605908,0.01955806,95818.0,95814.0,0.02087377]
[1763260606115,0.01955806,95818.0,95815.0,0.02087355]
[1763260606326,0.01955806,95818.0,95816.0,0.03521236]
[1763260606539,0.01955806,95818.0,95816.0,0.05915334]
[1763260606950,0.01955806,95818.0,95817.0,0.03828]
[1763260607126,0.02055806,95818.0,95817.0,0.03828]
[1763260607358,0.01955806,95818.0,95817.0,0.03828]
[1763260607773,0.02055806,95818.0,95817.0,0.05894]
[1763260607979,0.02155806,95818.0,95817.0,0.05894]
[1763260608185,0.02155806,95818.0,95817.0,0.03152281]
[1763260608613,0.02055806,95818.0,95817.0,0.03152281]
[1763260608789,0.02155806,95818.0,95817.0,0.03152281]
[1763260609004,0.02055806,95818.0,95817.0,0.04153312]
[1763260609210,0.01955806,95818.0,95817.0,0.04153312]
[1763260609838,0.02055806,95818.0,95817.0,0.04153312]
[1763260610417,0.02055806,95818.0,95817.0,0.02066]
[1763260614044,0.02055806,95818.0,95817.0,0.04153312]
[1763260614247,0.02055806,95818.0,95817.0,0.05165524]
[1763260615424,0.01955806,95818.0,95817.0,0.05165524]
[1763260616013,0.00024518,95831.0,95826.0,0.02557]
[1763260616225,0.00024518,95831.0,95817.0,0.05165524]
[1763260616226,0.01954761,95830.0,95820.0,0.38907986]
[1763260616348,0.01954761,95830.0,95821.0,0.06656974]
[1763260616548,0.01954761,95830.0,95829.0,0.02557]
[1763260616958,0.01954761,95830.0,95821.0,0.06656974]
[1763260617211,0.01954761,95830.0,95829.0,0.04623]
[1763260617582,0.01954761,95830.0,95829.0,0.02066]
[1763260618020,0.02054761,95830.0,95829.0,0.02066]
[1763260618381,0.02154761,95830.0,95829.0,0.02066]
[1763260618589,0.01954761,95830.0,95829.0,0.02066]
[1763260618770,0.02054761,95830.0,95829.0,0.02066]
[1763260618970,0.02154761,95830.0,95829.0,0.02066]
[1763260621600,0.002,95830.0,95829.0,0.02066]
[1763260621801,0.00024518,95831.0,95829.0,0.02066]
[1763260621951,0.00024518,95831.0,95830.0,0.05661029]
[1763260622160,0.01977426,95831.0,95830.0,0.04346703]
[1763260622366,0.00024518,95831.0,95830.0,0.00772703]
[1763260622561,0.00024518,95831.0,95830.0,0.02087029]
[1763260623435,0.00024518,95831.0,95830.0,0.04313199]
[1763260624878,0.01637527,95854.0,95830.0,0.04313199]
[1763260624879,0.01637527,95854.0,95840.0,0.02373]
[1763260625078,0.01642028,95854.0,95853.0,0.03973]
[1763260625279,0.01642028,95854.0,95853.0,0.016]
[1763260625975,0.01955625,95854.0,95853.0,0.016]
[1763260626516,0.02055625,95854.0,95853.0,0.016]
[1763260627126,0.02155625,95854.0,95853.0,0.016]
[1763260627764,0.02055625,95854.0,95853.0,0.016]
[1763260628082,0.02155625,95854.0,95853.0,0.016]
[1763260629050,0.02155625,95854.0,95853.0,0.02148464]
[1763260630669,0.00204501,95854.0,95853.0,0.02148464]
[1763260631141,0.0026714,95854.0,95853.0,0.02148464]
[1763260631317,0.0016714,95854.0,95853.0,0.02148464]
[1763260631720,0.0006714,95854.0,95853.0,0.02148464]
[1763260632150,0.0006714,95854.0,95853.0,0.016]
[1763260632504,0.0201538,95854.0,95853.0,0.016]
[1763260640562,0.20865973,95850.0,95848.0,0.01798]
[1763260640782,0.0194824,95849.0,95848.0,0.01798]
[1763260640970,0.0194824,95849.0,95848.0,0.05337]
[1763260641180,0.04548239,95849.0,95848.0,0.05337]
[1763260641509,0.04548239,95849.0,95848.0,0.01798]
[1763260641858,0.25414393,95849.0,95848.0,0.01798]
[1763260642079,0.04548239,95849.0,95848.0,0.01798]
[1763260642284,0.04648239,95849.0,95848.0,0.01798]
[1763260642484,0.00835239,95849.0,95848.0,0.01798]
[1763260643511,0.00835239,95849.0,95848.0,0.0644513]
[1763260643512,0.00635239,95849.0,95848.0,0.0644513]
[1763260643717,0.00635239,95849.0,95848.0,0.06964099]
[1763260643898,0.00535239,95849.0,95848.0,0.09050736]
[1763260644084,0.00435239,95849.0,95848.0,0.09050736]
[1763260644285,4.501e-05,95854.0,95849.0,0.03539]
[1763260644587,4.501e-05,95854.0,95850.0,0.05571697]
[1763260644783,4.501e-05,95854.0,95851.0,0.0222613]
[1763260645004,4.501e-05,95854.0,95852.0,0.0222613]
[1763260645194,4.501e-05,95854.0,95848.0,0.01798]
[1763260645195,4.501e-05,95854.0,95853.0,0.0576513]
[1763260645421,4.501e-05,95854.0,95848.0,0.01798]
[1763260645835,4.501e-05,95854.0,95849.0,0.03539]
[1763260646255,0.00051747,95850.0,95849.0,0.040727]
[1763260646619,0.00051747,95850.0,95849.0,0.03539]
[1763260647345,0.00051747,95850.0,95849.0,0.05625615]
[1763260647548,0.00051747,95850.0,95849.0,0.04315344]
[1763260648887,0.00051747,95850.0,95849.0,0.02228729]
[1763260650003,0.00051747,95850.0,95849.0,0.05007081]
[1763260650203,0.00051747,95850.0,95849.0,0.09538458]
[1763260650646,0.00051747,95850.0,95849.0,0.02228729]
[1763260651449,0.00051747,95850.0,95849.0,0.05007081]
[1763260652174,0.00051747,95850.0,95849.0,0.02228729]
[1763260654465,0.00051747,95850.0,95849.0,0.04185666]
[1763260655898,0.00051747,95850.0,95849.0,0.04315344]
[1763260656105,0.00051747,95850.0,95849.0,0.11740399]
[1763260656316,0.00051747,95850.0,95849.0,0.15455648]
[1763260656997,0.00051747,95850.0,95849.0,0.05943978]
[1763260657421,0.00051747,95850.0,95849.0,0.02228729]
[1763260657617,0.00051747,95850.0,95849.0,0.05943978]
[1763260658116,0.00051747,95850.0,95849.0,0.02228729]
[1763260658324,0.00051747,95850.0,95849.0,0.05943978]
[1763260658481,0.00051747,95850.0,95849.0,0.09816701]
[1763260658689,0.00051747,95850.0,95849.0,0.0594347]
[1763260659294,0.00051747,95850.0,95849.0,0.02228729]
[1763260660921,0.00051747,95850.0,95849.0,0.06570603]
[1763260661082,0.00051747,95850.0,95849.0,0.27436757]
[1763260662008,0.00051747,95850.0,95849.0,0.74336757]
[1763260662220,0.00051747,95850.0,95849.0,0.84703695]
[1763260662428,0.01055931,95906.0,95849.0,0.84703695]
[1763260662429,0.03135,95906.0,95890.0,0.01999998]
[1763260662629,0.01953459,95905.0,95900.0,0.01669]
[1763260662831,0.01953459,95904.0,95900.0,0.01669]
[1763260663075,0.01953459,95903.0,95901.0,0.03708]
[1763260663252,0.01953459,95902.0,95901.0,0.05377]
[1763260663652,0.02094992,95902.0,95901.0,0.01669]
[1763260664438,0.01894992,95902.0,95901.0,0.04012]
[1763260664634,0.01994992,95902.0,95901.0,0.04012]
[1763260664930,0.01994992,95902.0,95901.0,0.01669]
[1763260664931,0.01894992,95902.0,95901.0,0.01669]
[1763260665357,0.01994992,95902.0,95901.0,0.01669]
[1763260665557,0.02094992,95902.0,95901.0,0.01669]
[1763260665789,0.01994992,95902.0,95901.0,0.01669]
[1763260666448,0.01894992,95902.0,95901.0,0.01669]
[1763260666671,0.01994992,95902.0,95901.0,0.01669]
[1763260667320,0.01494992,95902.0,95901.0,0.01669]
[1763260667561,0.01494992,95902.0,95900.0,0.01669]
[1763260667735,0.001,95902.0,95899.0,0.01669]
[1763260667956,4.504e-05,95906.0,95901.0,0.02343]
[1763260668158,4.504e-05,95906.0,95901.0,0.029111]
[1763260668159,0.001,95902.0,95901.0,0.029111]
[1763260668330,0.002,95902.0,95901.0,0.005681]
[1763260668532,0.53154015,95905.0,95901.0,0.005681]
[1763260668533,0.52354015,95905.0,95901.0,0.005681]
[1763260668811,0.52354015,95905.0,95895.0,0.01669]
[1763260668812,0.315,95905.0,95900.0,0.01669]
[1763260669024,0.001,95902.0,95885.0,0.03708]
[1763260669220,0.20856131,95897.0,95885.0,0.03708]
[1763260669418,0.20856403,95894.0,95885.0,0.03708]
[1763260669644,0.20856144,95895.0,95885.0,0.03708]
[1763260669851,0.20856565,95894.0,95885.0,0.03708]
[1763260670262,0.20856672,95893.0,95885.0,0.03708]
[1763260670462,0.001,95897.0,95880.0,0.01669]
[1763260670789,0.46253492,95900.0,95890.0,0.00999999]
[1763260670790,0.53157014,95891.0,95890.0,0.00999999]
[1763260671014,0.323,95891.0,95881.0,0.03708]
[1763260671149,0.20857458,95889.0,95881.0,0.03708]
[1763260671528,0.20357458,95889.0,95881.0,0.03708]
[1763260671734,0.323,95891.0,95888.0,0.01669]
[1763260671940,0.001,95893.0,95890.0,0.02343]
[1763260672260,0.001,95891.0,95890.0,0.02343]
[1763260672456,0.001,95891.0,95890.0,0.03115]
[1763260672923,0.001,95891.0,95890.0,0.02857723]
[1763260673119,0.001,95891.0,95890.0,0.02085723]
[1763260673554,0.002,95891.0,95890.0,0.02085723]
[1763260673731,4.504e-05,95906.0,95900.0,0.00999999]
[1763260673931,4.504e-05,95906.0,95905.0,0.01669]
[1763260674984,0.01241222,95909.0,95905.0,0.04012]
[1763260675194,0.001,95906.0,95905.0,0.04929171]
[1763260675764,0.001,95906.0,95905.0,0.04057171]
[1763260675765,0.01836728,95906.0,95905.0,0.04057171]
[1763260675993,0.53353752,95906.0,95905.0,0.01714171]
[1763260676147,0.53253752,95906.0,95905.0,0.01714171]
[1763260676375,0.55571752,95906.0,95905.0,0.00045171]
[1763260677266,0.60013626,95906.0,95905.0,0.00045171]
[1763260678354,0.57595626,95906.0,95905.0,0.00045171]
[1763260678590,0.57695626,95906.0,95905.0,0.00045171]
[1763260679105,0.5784804,95906.0,95905.0,0.00045171]
[1763260679313,0.34505952,95906.0,95905.0,0.00045171]
[1763260679604,0.34605952,95906.0,95905.0,0.00045171]
[1763260680459,0.34405952,95906.0,95905.0,0.00045171]
[1763260680697,0.57777704,95906.0,95905.0,0.00045171]
[1763260680904,0.62119578,95906.0,95905.0,0.00045171]
[1763260681561,0.82090454,95906.0,95905.0,0.00045171]
[1763260681773,0.82090454,95906.0,95860.0,0.01999998]
[1763260681774,0.20862041,95868.0,95860.0,0.01999998]
[1763260681978,0.5511579,95867.0,95860.0,0.01999998]
[1763260682184,0.323,95863.0,95858.0,0.01669]
[1763260682401,0.323,95867.0,95858.0,0.01669]
[1763260682402,0.20863837,95860.0,95858.0,0.01669]
[1763260682573,0.01954022,95859.0,95858.0,0.01669]
[1763260684262,0.02054022,95859.0,95858.0,0.01669]
[1763260684437,0.02154022,95859.0,95858.0,0.01669]
[1763260685389,0.02154022,95859.0,95858.0,0.03755419]
[1763260685569,0.02054022,95859.0,95858.0,0.03755419]
[1763260685714,0.02154022,95859.0,95858.0,0.03755419]
[1763260685944,0.002,95859.0,95858.0,0.03755419]
[1763260686156,0.001,95859.0,95858.0,0.03755419]
[1763260686498,0.04341874,95884.0,95867.0,0.02202]
[1763260686721,0.01997205,95868.0,95867.0,0.02202]
[1763260687811,0.02097205,95868.0,95867.0,0.02202]
[1763260688265,0.02146209,95868.0,95867.0,0.02202]
[1763260688409,0.02145901,95868.0,95867.0,0.02202]
[1763260688818,0.02245901,95868.0,95866.0,0.01669]
[1763260689017,0.01951903,95867.0,95866.0,0.01669]
[1763260689218,0.01898185,95867.0,95866.0,0.03871]
[1763260690444,0.01998185,95867.0,95866.0,0.03871]
[1763260690842,0.01998185,95867.0,95866.0,0.02464735]
[1763260691904,0.01998185,95867.0,95866.0,0.01669]
[1763260700600,0.00146282,95867.0,95866.0,0.01669]
[1763260701463,0.02098812,95867.0,95866.0,0.01669]
[1763260702070,0.04309812,95867.0,95858.0,0.01669]
[1763260702276,0.00976,95859.0,95848.0,0.01337]
[1763260702476,0.323,95857.0,95848.0,0.01337]
[1763260702764,0.0195253,95858.0,95840.0,0.00999999]
[1763260702765,0.20865069,95854.0,95840.0,0.00999999]
[1763260703016,0.323,95850.0,95840.0,0.01999998]
[1763260703192,0.0195253,95849.0,95844.0,0.01337]
[1763260704185,0.0195253,95848.0,95844.0,0.01337]
[1763260704387,0.323,95851.0,95844.0,0.01337]
[1763260704388,0.0195253,95847.0,95844.0,0.01337]
[1763260704589,0.323,95851.0,95840.0,0.00999999]
[1763260704590,0.0195253,95846.0,95840.0,0.00999999]
[1763260704789,0.0195253,95845.0,95840.0,0.01999998]
[1763260704995,0.0195253,95845.0,95832.0,0.04896]
[1763260704996,0.0195253,95844.0,95835.0,0.01609]
[1763260705452,0.323,95843.0,95835.0,0.01609]
[1763260705639,0.0195253,95842.0,95835.0,0.01609]
[1763260706407,0.0195253,95842.0,95835.0,0.05028]
[1763260706605,0.0195284,95841.0,95835.0,0.05028]
[1763260706831,0.0195284,95840.0,95835.0,0.05028]
[1763260707002,0.0195284,95839.0,95835.0,0.05028]
[1763260707208,0.0195284,95838.0,95835.0,0.05028]
[1763260707407,0.0195284,95837.0,95835.0,0.01609]
[1763260707609,0.0195284,95836.0,95835.0,0.01609]
[1763260708123,0.01997834,95836.0,95835.0,0.01609]
[1763260709025,0.02097834,95836.0,95835.0,0.01609]
[1763260709566,0.02197834,95836.0,95835.0,0.01609]
[1763260709769,0.02197834,95836.0,95835.0,0.0369592]
[1763260710968,0.02097834,95836.0,95835.0,0.0369592]
[1763260711483,0.01997834,95836.0,95835.0,0.0369592]
[1763260714509,0.01997834,95836.0,95835.0,0.01609]
[1763260714707,0.01997834,95836.0,95835.0,0.0369592]
[1763260721690,0.01997834,95836.0,95835.0,0.01609]
[1763260721841,0.01997834,95836.0,95835.0,0.0369592]
[1763260722064,0.00044994,95836.0,95835.0,0.04413212]
[1763260722276,0.00044994,95836.0,95835.0,0.0369592]
[1763260722486,0.0199806,95836.0,95835.0,0.0369592]
[1763260722710,0.0199806,95836.0,95835.0,0.01609]
[1763260725406,0.0199806,95836.0,95835.0,0.03839339]
[1763260725835,0.0199806,95836.0,95835.0,0.01609]
[1763260726047,0.0199806,95836.0,95835.0,0.03839315]
[1763260726216,0.0199806,95836.0,95835.0,0.01609]
[1763260726421,0.0199806,95836.0,95835.0,0.0383971]
[1763260726624,0.0199806,95836.0,95835.0,0.06866997]
[1763260727217,0.0199806,95836.0,95835.0,0.0592663]
[1763260727412,0.00044994,95836.0,95835.0,0.0592663]
[1763260730658,0.02001555,95836.0,95835.0,0.0592663]
[1763260730853,0.00044994,95836.0,95835.0,0.0592663]
[1763260731434,0.02002245,95836.0,95835.0,0.0592663]
[1763260732225,0.02002245,95836.0,95835.0,0.07516631]
[1763260733653,0.02002245,95836.0,95835.0,0.0592663]
[1763260734196,0.00044994,95836.0,95835.0,0.0383971]